[Event "Open Nuevo Centro. Jornada 1"]
[Site "Chess.com"]
[Date "2020.06.19"]
[Round "3"]
[White "Lupu, Alexandru Mihai"]
[Black "Gimenez Saiz, Jose Raul"]
[Result "0-1"]
[WhiteElo "1020"]
[BlackElo "1533"]
[TimeControl "180+2"]
[EndTime "11:02:11 PDT"]
[Termination "Victoria de rango013 por jaque mate"]

1. d4 {[%clk 0:03:01.9]} 1... d6 {[%clk 0:01:48.5]} 2. Bf4 {[%clk 0:02:59]} 2...
Nd7 {[%clk 0:01:46.6]} 3. e3 {[%clk 0:02:58.2]} 3... g6 {[%clk 0:01:43.7]} 4.
Bd3 {[%clk 0:02:56.8]} 4... Bg7 {[%clk 0:01:43.3]} 5. c3 {[%clk 0:02:56.8]} 5...
e5 {[%clk 0:01:40.1]} 6. Bg3 {[%clk 0:02:54.5]} 6... Ne7 {[%clk 0:01:32.9]} 7.
Nf3 {[%clk 0:02:51.2]} 7... Nf5 {[%clk 0:01:30.3]} 8. Bxf5 {[%clk 0:02:34]} 8...
gxf5 {[%clk 0:01:30]} 9. dxe5 {[%clk 0:02:21.4]} 9... dxe5 {[%clk 0:01:26.9]}
10. Bxe5 {[%clk 0:02:15]} 10... Nxe5 {[%clk 0:01:23.6]} 11. Qxd8+ {[%clk
0:02:13.5]} 11... Kxd8 {[%clk 0:01:22.1]} 12. Ng5 {[%clk 0:02:09.2]} 12... h6
{[%clk 0:01:18.8]} 13. f4 {[%clk 0:02:02.5]} 13... hxg5 {[%clk 0:01:17.3]} 14.
fxe5 {[%clk 0:02:03]} 14... Bxe5 {[%clk 0:01:17.6]} 15. O-O {[%clk 0:02:00.1]}
15... Bxh2+ {[%clk 0:01:10.3]} 16. Kf2 {[%clk 0:01:57.6]} 16... Bd6 {[%clk
0:01:04.4]} 17. Rd1 {[%clk 0:01:53.7]} 17... Be6 {[%clk 0:01:01.1]} 18. Na3
{[%clk 0:01:51.9]} 18... Ke7 {[%clk 0:00:58.7]} 19. Rf1 {[%clk 0:01:47]} 19...
Bxa3 {[%clk 0:00:53]} 20. bxa3 {[%clk 0:01:46.3]} 20... Rae8 {[%clk 0:00:54.4]}
21. a4 {[%clk 0:01:44]} 21... Rd8 {[%clk 0:00:54.4]} 22. a3 {[%clk 0:01:43.5]}
22... Rd2+ {[%clk 0:00:52.7]} 23. Ke1 {[%clk 0:01:39.3]} 23... Rxg2 {[%clk
0:00:51.2]} 24. Rf2 {[%clk 0:01:34.5]} 24... Rh1+ {[%clk 0:00:47.8]} 25. Ke2
{[%clk 0:01:33.9]} 25... Rxf2+ {[%clk 0:00:47.7]} 26. Kxf2 {[%clk 0:01:30.8]}
26... Rxa1 {[%clk 0:00:48.8]} 27. Kf3 {[%clk 0:01:31.4]} 27... Rxa3 {[%clk
0:00:44.6]} 28. e4 {[%clk 0:01:31.8]} 28... Rxc3+ {[%clk 0:00:42.5]} 29. Ke2
{[%clk 0:01:29.9]} 29... fxe4 {[%clk 0:00:42.8]} 30. Kd2 {[%clk 0:01:29.7]}
30... Rd3+ {[%clk 0:00:42.3]} 31. Ke2 {[%clk 0:01:29.7]} 31... c5 {[%clk
0:00:40.1]} 32. Kf2 {[%clk 0:01:28.9]} 32... c4 {[%clk 0:00:41]} 33. Ke2 {[%clk
0:01:29.2]} 33... c3 {[%clk 0:00:42.2]} 34. Kf2 {[%clk 0:01:29.3]} 34... c2
{[%clk 0:00:43.5]} 35. Ke2 {[%clk 0:01:29.9]} 35... c1=R {[%clk 0:00:43.2]} 36.
Kf2 {[%clk 0:01:30.3]} 36... Rc2+ {[%clk 0:00:44]} 37. Ke1 {[%clk 0:01:29.5]}
37... Bg4 {[%clk 0:00:40.6]} 38. Kf1 {[%clk 0:01:26.4]} 38... Rd1# {[%clk
0:00:41.6]} 0

[Event "Open Nuevo Centro. Jornada 1"]
[Site "Chess.com"]
[Date "2020.06.19"]
[Round "3"]
[White "Garrido Barona, An�bal"]
[Black "Yeste Campos, Manuel"]
[Result "0-1"]
[WhiteElo "644"]
[BlackElo "926"]
[TimeControl "180+2"]
[EndTime "11:02:12 PDT"]
[Termination "Victoria de Manuel_Yeste por tiempo"]

1. e4 {[%clk 0:02:43.7]} 1... e5 {[%clk 0:02:58.5]} 2. Nf3 {[%clk 0:02:42.4]}
2... Nc6 {[%clk 0:02:59]} 3. Bc4 {[%clk 0:02:41.2]} 3... Bc5 {[%clk 0:02:57.8]}
4. Ng5 {[%clk 0:02:38.9]} 4... f6 {[%clk 0:02:43.7]} 5. Nf7 {[%clk 0:02:37.7]}
5... Qe7 {[%clk 0:02:37]} 6. Nxh8 {[%clk 0:02:37.3]} 6... d6 {[%clk 0:02:29]} 7.
Nf7 {[%clk 0:02:31.5]} 7... Be6 {[%clk 0:02:22.7]} 8. Nh8 {[%clk 0:02:15]} 8...
Bxc4 {[%clk 0:02:21.9]} 9. Qh5+ {[%clk 0:02:01.2]} 9... g6 {[%clk 0:02:06]} 10.
Nxg6 {[%clk 0:01:55.2]} 10... hxg6 {[%clk 0:02:06.5]} 11. Qxg6+ {[%clk
0:01:55.9]} 11... Bf7 {[%clk 0:02:06.3]} 12. Qf5 {[%clk 0:01:45.1]} 12... Nh6
{[%clk 0:02:03.3]} 13. Qf3 {[%clk 0:01:40.5]} 13... O-O-O {[%clk 0:01:46]} 14.
O-O {[%clk 0:01:37.4]} 14... d5 {[%clk 0:01:46.4]} 15. d3 {[%clk 0:01:35.5]}
15... dxe4 {[%clk 0:01:46.4]} 16. dxe4 {[%clk 0:01:34.9]} 16... Nd4 {[%clk
0:01:41]} 17. Qh3+ {[%clk 0:01:28.2]} 17... Be6 {[%clk 0:01:37.6]} 18. Qxh6
{[%clk 0:01:22.7]} 18... Nxc2 {[%clk 0:01:34.5]} 19. Na3 {[%clk 0:01:14.4]}
19... Nxa1 {[%clk 0:01:33]} 20. b4 {[%clk 0:01:12.9]} 20... Bd4 {[%clk
0:01:29.4]} 21. Bd2 {[%clk 0:00:54.4]} 21... Bxa2 {[%clk 0:01:20.8]} 22. Rxa1
{[%clk 0:00:46.8]} 22... Bxa1 {[%clk 0:01:20.4]} 23. Qe3 {[%clk 0:00:26.3]}
23... Bd4 {[%clk 0:01:16.7]} 24. Qd3 {[%clk 0:00:15.5]} 24... Bxf2+ {[%clk
0:01:08.5]} 25. Kxf2 {[%clk 0:00:15]} 25... Rxd3 {[%clk 0:01:09]} 26. Nc2 {[%clk
0:00:04.2]} 26... Rxd2+ {[%clk 0:01:08.8]} 27. Kg1 {[%clk 0:00:02.2]} 27... Rxc2
{[%clk 0:01:05.4]} 28. h3 {[%clk 0:00:02.2]} 28... Qxb4 {[%clk 0:01:05]} 0

[Event "Open Nuevo Centro. Jornada 1"]
[Site "Chess.com"]
[Date "2020.06.19"]
[Round "3"]
[White "Mart�nez Carvajal, Juan Francisco"]
[Black "Gimenez Sanchis, Jose Antonio"]
[Result "0-1"]
[WhiteElo "1767"]
[BlackElo "1438"]
[TimeControl "180+2"]
[EndTime "11:02:15 PDT"]
[Termination "Victoria de migesoj por tiempo"]

1. Nf3 {[%clk 0:02:51.7]} 1... c6 {[%clk 0:02:59.8]} 2. c4 {[%clk 0:02:44.4]}
2... Nf6 {[%clk 0:02:59.4]} 3. g3 {[%clk 0:02:42.1]} 3... d5 {[%clk 0:03:00.1]}
4. b3 {[%clk 0:02:42.1]} 4... e6 {[%clk 0:02:57.5]} 5. Bg2 {[%clk 0:02:41.9]}
5... Be7 {[%clk 0:02:58.4]} 6. O-O {[%clk 0:02:38.2]} 6... dxc4 {[%clk
0:02:51.5]} 7. bxc4 {[%clk 0:02:38.7]} 7... O-O {[%clk 0:02:52.3]} 8. Nc3 {[%clk
0:02:34]} 8... a6 {[%clk 0:02:52.3]} 9. a4 {[%clk 0:02:30.6]} 9... Nbd7 {[%clk
0:02:52.2]} 10. a5 {[%clk 0:02:27]} 10... Rb8 {[%clk 0:02:40.2]} 11. d4 {[%clk
0:02:27.2]} 11... b6 {[%clk 0:02:39.8]} 12. axb6 {[%clk 0:02:26.5]} 12... Nxb6
{[%clk 0:02:40.4]} 13. Qd3 {[%clk 0:02:19.7]} 13... Bb7 {[%clk 0:02:37.5]} 14.
Bf4 {[%clk 0:02:08]} 14... Rc8 {[%clk 0:02:33.2]} 15. Rfb1 {[%clk 0:01:53.6]}
15... Ba8 {[%clk 0:02:27.3]} 16. Rxa6 {[%clk 0:01:47.2]} 16... c5 {[%clk
0:02:08.6]} 17. Raxb6 {[%clk 0:01:36.4]} 17... cxd4 {[%clk 0:02:01.6]} 18. Nxd4
{[%clk 0:01:22.6]} 18... Bxg2 {[%clk 0:01:57.9]} 19. Kxg2 {[%clk 0:01:22.7]}
19... Bc5 {[%clk 0:01:58.9]} 20. Rb8 {[%clk 0:00:26.7]} 20... Qxd4 {[%clk
0:01:55.4]} 21. Rxc8 {[%clk 0:00:19.2]} 21... Rxc8 {[%clk 0:01:49.8]} 22. Rb7
{[%clk 0:00:16.9]} 22... Qxd3 {[%clk 0:01:48.5]} 23. exd3 {[%clk 0:00:17.8]}
23... h6 {[%clk 0:01:43.8]} 24. Nb5 {[%clk 0:00:14.4]} 24... Nh5 {[%clk
0:01:38.8]} 25. Be3 {[%clk 0:00:15.2]} 25... Bb4 {[%clk 0:01:26]} 26. Kf3 {[%clk
0:00:11.7]} 26... Be1 {[%clk 0:01:20.6]} 27. c5 {[%clk 0:00:09.5]} 27... Nf6
{[%clk 0:01:20.4]} 28. Nd6 {[%clk 0:00:06.8]} 28... Rd8 {[%clk 0:01:14.9]} 29.
Nxf7 {[%clk 0:00:04.6]} 29... Rc8 {[%clk 0:01:04.6]} 30. Nd6 {[%clk 0:00:02.5]}
30... Rc6 {[%clk 0:01:02.9]} 31. d4 {[%clk 0:00:02.7]} 31... Nd5 {[%clk
0:01:02.9]} 0

[Event "Open Nuevo Centro. Jornada 1"]
[Site "Chess.com"]
[Date "2020.06.19"]
[Round "3"]
[White "Roca Cruz, Rafael"]
[Black "Juan Alos, Sergio"]
[Result "1-0"]
[WhiteElo "1667"]
[BlackElo "1218"]
[TimeControl "180+2"]
[EndTime "11:02:19 PDT"]
[Termination "Victoria de RafaRocaCruz por abandono"]

1. d4 {[%clk 0:03:00]} 1... d5 {[%clk 0:02:59.9]} 2. c4 {[%clk 0:03:00.9]} 2...
e6 {[%clk 0:02:59.9]} 3. Nc3 {[%clk 0:03:01.9]} 3... c5 {[%clk 0:03:00.8]} 4. e3
{[%clk 0:03:00.5]} 4... Nc6 {[%clk 0:02:57.6]} 5. dxc5 {[%clk 0:02:59.9]} 5...
Bxc5 {[%clk 0:02:57.3]} 6. cxd5 {[%clk 0:03:01]} 6... exd5 {[%clk 0:02:57.6]} 7.
Qxd5 {[%clk 0:03:01.8]} 7... Qxd5 {[%clk 0:02:58]} 8. Nxd5 {[%clk 0:03:02.9]}
8... Bb4+ {[%clk 0:02:48.5]} 9. Bd2 {[%clk 0:03:02.5]} 9... Bxd2+ {[%clk
0:02:48.6]} 10. Kxd2 {[%clk 0:03:03.7]} 10... Nge7 {[%clk 0:02:35.3]} 11. Nc7+
{[%clk 0:03:03.3]} 11... Kd8 {[%clk 0:02:24.5]} 12. Nxa8 {[%clk 0:03:02.5]}
12... Bf5 {[%clk 0:02:23.2]} 13. Rc1 {[%clk 0:01:56.1]} 13... Kd7 {[%clk
0:02:21.6]} 14. Nb6+ {[%clk 0:01:49.3]} 14... axb6 {[%clk 0:02:21]} 15. a3
{[%clk 0:01:50.4]} 15... b5 {[%clk 0:02:14.6]} 16. Bxb5 {[%clk 0:01:46.7]} 16...
Rc8 {[%clk 0:01:59.8]} 17. Nf3 {[%clk 0:01:43.4]} 17... Be4 {[%clk 0:02:00.8]}
18. Ne5+ {[%clk 0:01:35.1]} 18... Kd6 {[%clk 0:01:55.4]} 19. Bxc6 {[%clk
0:01:29.6]} 19... bxc6 {[%clk 0:01:54.5]} 20. Nc4+ {[%clk 0:01:02.7]} 20... Ke6
{[%clk 0:01:45.8]} 21. f3 {[%clk 0:01:02.7]} 21... Bd5 {[%clk 0:01:45.8]} 22. e4
{[%clk 0:00:55]} 22... Bxc4 {[%clk 0:01:46.1]} 23. Rxc4 {[%clk 0:00:56]} 23...
Ng6 {[%clk 0:01:44.1]} 24. g3 {[%clk 0:00:45.9]} 24... Ne5 {[%clk 0:01:42.9]}
25. Rc3 {[%clk 0:00:25.6]} 25... Rb8 {[%clk 0:01:37.5]} 26. b4 {[%clk
0:00:26.4]} 26... Kd6 {[%clk 0:01:28.9]} 27. h3 {[%clk 0:00:26.6]} 27... Rb5
{[%clk 0:01:07.7]} 28. f4 {[%clk 0:00:27]} 28... Nd7 {[%clk 0:01:05.7]} 29. Ke3
{[%clk 0:00:27.4]} 29... c5 {[%clk 0:01:05.6]} 30. Rd1+ {[%clk 0:00:27.2]} 30...
Ke6 {[%clk 0:01:05.8]} 31. Rd5 {[%clk 0:00:24.9]} 31... cxb4 {[%clk 0:01:05.5]}
32. Rxb5 {[%clk 0:00:24.2]} 1

[Event "Open Nuevo Centro. Jornada 1"]
[Site "Chess.com"]
[Date "2020.06.19"]
[Round "3"]
[White "Campos Gambuti, Luis Mar�a"]
[Black "Garcia Oviedo, Alejandro"]
[Result "1-0"]
[WhiteElo "2324"]
[BlackElo "1877"]
[TimeControl "180+2"]
[EndTime "11:02:23 PDT"]
[Termination "Victoria de Tangalangafacv por abandono"]

1. d4 {[%clk 0:03:01.9]} 1... d5 {[%clk 0:02:59.3]} 2. Nf3 {[%clk 0:03:00.7]}
2... Nf6 {[%clk 0:02:59.7]} 3. c4 {[%clk 0:03:02.1]} 3... c6 {[%clk 0:03:00.6]}
4. cxd5 {[%clk 0:03:01.1]} 4... cxd5 {[%clk 0:03:02.5]} 5. Nc3 {[%clk
0:03:02.2]} 5... Nc6 {[%clk 0:03:03.8]} 6. Bf4 {[%clk 0:03:03.7]} 6... e6 {[%clk
0:03:04.8]} 7. Rc1 {[%clk 0:03:05.2]} 7... Bd6 {[%clk 0:03:05]} 8. Bg5 {[%clk
0:03:05.8]} 8... h6 {[%clk 0:03:03.3]} 9. Bh4 {[%clk 0:03:05.7]} 9... O-O {[%clk
0:03:03.1]} 10. e3 {[%clk 0:03:06.2]} 10... a6 {[%clk 0:03:02.4]} 11. Be2 {[%clk
0:03:04.2]} 11... Bd7 {[%clk 0:02:58.1]} 12. O-O {[%clk 0:03:03.6]} 12... b5
{[%clk 0:02:57.3]} 13. a3 {[%clk 0:02:58.2]} 13... Na5 {[%clk 0:02:58]} 14. e4
{[%clk 0:02:55.4]} 14... dxe4 {[%clk 0:02:52.1]} 15. Nxe4 {[%clk 0:02:55.4]}
15... Be7 {[%clk 0:02:53.7]} 16. Nc5 {[%clk 0:02:56]} 16... Bc8 {[%clk 0:02:46]}
17. Ne5 {[%clk 0:02:53.1]} 17... Nd7 {[%clk 0:02:16.9]} 18. Bg3 {[%clk
0:02:44.6]} 18... Nxc5 {[%clk 0:02:14.9]} 19. dxc5 {[%clk 0:02:43.7]} 19... Qxd1
{[%clk 0:02:14.4]} 20. Rcxd1 {[%clk 0:02:39.5]} 20... Bf6 {[%clk 0:01:15.8]} 21.
Bf3 {[%clk 0:02:24.4]} 21... Ra7 {[%clk 0:01:10.7]} 22. b4 {[%clk 0:02:03.3]}
22... Bxe5 {[%clk 0:01:11.2]} 23. Bxe5 {[%clk 0:02:03]} 23... Nc4 {[%clk
0:01:11.8]} 24. Bd4 {[%clk 0:01:46.8]} 24... Rd7 {[%clk 0:01:04.9]} 25. c6
{[%clk 0:01:44.1]} 25... Rdd8 {[%clk 0:01:01.3]} 26. Bc5 {[%clk 0:01:41.8]}
26... Rfe8 {[%clk 0:01:00.5]} 27. c7 {[%clk 0:01:25.4]} 27... Rxd1 {[%clk
0:00:58.6]} 28. Rxd1 {[%clk 0:01:25.2]} 28... Kh8 {[%clk 0:00:28.2]} 29. Rd8
{[%clk 0:01:23.8]} 29... Rg8 {[%clk 0:00:29.2]} 30. Bf8 {[%clk 0:01:02.5]} 30...
Nb6 {[%clk 0:00:24.4]} 31. Bc6 {[%clk 0:00:59.8]} 31... e5 {[%clk 0:00:22.1]}
32. Bc5 {[%clk 0:00:54.1]} 32... Nc4 {[%clk 0:00:19.7]} 33. Bd5 {[%clk
0:00:53.9]} 33... Nxa3 {[%clk 0:00:15]} 34. Bxf7 {[%clk 0:00:54]} 1

[Event "Open Nuevo Centro. Jornada 1"]
[Site "Chess.com"]
[Date "2020.06.19"]
[Round "3"]
[White "Ainsa Jimenez, Lucas"]
[Black "Cebrian Granado, Fran"]
[Result "1-0"]
[WhiteElo "1000"]
[BlackElo "649"]
[TimeControl "180+2"]
[EndTime "11:02:34 PDT"]
[Termination "Victoria de ainsaluck por tiempo"]

1. e4 {[%clk 0:03:01.9]} 1... e5 {[%clk 0:02:45.3]} 2. Nf3 {[%clk 0:03:02.3]}
2... Nf6 {[%clk 0:02:45.8]} 3. Nxe5 {[%clk 0:03:01.9]} 3... Nxe4 {[%clk
0:02:46.1]} 4. Qe2 {[%clk 0:03:01.8]} 4... f6 {[%clk 0:02:36.2]} 5. Qxe4 {[%clk
0:02:47.5]} 5... Qe7 {[%clk 0:02:29.3]} 6. Be2 {[%clk 0:02:38.5]} 6... Nc6
{[%clk 0:02:24.5]} 7. Qf3 {[%clk 0:02:29.8]} 7... Qxe5 {[%clk 0:02:22.7]} 8. O-O
{[%clk 0:02:28.4]} 8... Bc5 {[%clk 0:02:21.4]} 9. Re1 {[%clk 0:02:25.8]} 9...
O-O {[%clk 0:02:22.2]} 10. Bc4+ {[%clk 0:02:25.1]} 10... Kh8 {[%clk 0:02:15.7]}
11. Rxe5 {[%clk 0:02:24]} 11... Nxe5 {[%clk 0:02:14.3]} 12. Qd5 {[%clk
0:02:19.8]} 12... Nxc4 {[%clk 0:02:02]} 13. Qxc5 {[%clk 0:02:15.2]} 13... Nd6
{[%clk 0:01:55.5]} 14. h3 {[%clk 0:02:10.6]} 14... b6 {[%clk 0:01:50.9]} 15.
Qxc7 {[%clk 0:02:04.6]} 15... Ba6 {[%clk 0:01:47.6]} 16. Qxd6 {[%clk 0:01:58.2]}
16... b5 {[%clk 0:01:39.5]} 17. Qxa6 {[%clk 0:01:56.8]} 17... f5 {[%clk
0:01:35.8]} 18. d3 {[%clk 0:01:33.9]} 18... h6 {[%clk 0:01:37.7]} 19. Bf4 {[%clk
0:01:31]} 19... Kh7 {[%clk 0:01:38.9]} 20. Qxb5 {[%clk 0:01:27.2]} 20... Rae8
{[%clk 0:01:40.8]} 21. Nc3 {[%clk 0:01:24.1]} 21... d6 {[%clk 0:01:42.7]} 22.
Bxd6 {[%clk 0:01:21.5]} 22... Rg8 {[%clk 0:01:44.6]} 23. Qxf5+ {[%clk
0:01:19.2]} 23... g6 {[%clk 0:01:44.3]} 24. Qf7+ {[%clk 0:01:14.1]} 24... Kh8
{[%clk 0:01:27.7]} 25. Bc5 {[%clk 0:00:55.9]} 25... Rd8 {[%clk 0:01:22.6]} 26.
Qf6+ {[%clk 0:00:43.6]} 26... Rg7 {[%clk 0:01:21.7]} 27. Qxd8+ {[%clk
0:00:43.7]} 27... Rg8 {[%clk 0:01:21.5]} 28. Qe7 {[%clk 0:00:43.4]} 28... Rg7
{[%clk 0:01:19.7]} 29. Qe8+ {[%clk 0:00:38.7]} 1

[Event "Open Nuevo Centro. Jornada 1"]
[Site "Chess.com"]
[Date "2020.06.19"]
[Round "3"]
[White "Chernikov, Vladimir"]
[Black "Mena Sancho, Angel"]
[Result "1-0"]
[WhiteElo "2244"]
[BlackElo "1507"]
[TimeControl "180+2"]
[EndTime "11:02:46 PDT"]
[Termination "Victoria de isla88 por abandono"]

1. b3 {[%clk 0:03:01.9]} 1... d5 {[%clk 0:02:58.5]} 2. Bb2 {[%clk 0:02:59.3]}
2... Nf6 {[%clk 0:02:59.3]} 3. Nf3 {[%clk 0:03:00.3]} 3... c5 {[%clk 0:02:59]}
4. e3 {[%clk 0:02:52.3]} 4... Nc6 {[%clk 0:02:59.4]} 5. Bb5 {[%clk 0:02:50]}
5... a6 {[%clk 0:02:58.1]} 6. Bxc6+ {[%clk 0:02:47.9]} 6... bxc6 {[%clk
0:03:00]} 7. Ne5 {[%clk 0:02:48.8]} 7... Qc7 {[%clk 0:02:53.5]} 8. f4 {[%clk
0:02:48.3]} 8... e6 {[%clk 0:02:53.7]} 9. d3 {[%clk 0:02:45.5]} 9... Bd6 {[%clk
0:02:53.6]} 10. Nd2 {[%clk 0:02:46.4]} 10... O-O {[%clk 0:02:51.9]} 11. O-O
{[%clk 0:02:46.7]} 11... Nd7 {[%clk 0:02:45.3]} 12. Nxd7 {[%clk 0:02:34.6]}
12... Bxd7 {[%clk 0:02:45.5]} 13. Nf3 {[%clk 0:02:31.4]} 13... f6 {[%clk
0:02:43.6]} 14. g3 {[%clk 0:02:21.7]} 14... Rab8 {[%clk 0:02:44.3]} 15. e4
{[%clk 0:02:04.5]} 15... c4 {[%clk 0:02:35.4]} 16. dxc4 {[%clk 0:01:52.9]} 16...
dxc4 {[%clk 0:02:34]} 17. Kg2 {[%clk 0:01:41.4]} 17... cxb3 {[%clk 0:02:30.5]}
18. axb3 {[%clk 0:01:40.2]} 18... Rfd8 {[%clk 0:02:30.8]} 19. Qe2 {[%clk
0:01:31.2]} 19... a5 {[%clk 0:02:28.6]} 20. h4 {[%clk 0:01:22.7]} 20... c5
{[%clk 0:02:06.1]} 21. e5 {[%clk 0:01:19.4]} 21... fxe5 {[%clk 0:02:04.8]} 22.
Nxe5 {[%clk 0:01:19.6]} 22... Bxe5 {[%clk 0:02:01.1]} 23. Bxe5 {[%clk
0:01:09.9]} 23... Qb7+ {[%clk 0:01:58.5]} 24. Kh3 {[%clk 0:01:04.2]} 24... Ra8
{[%clk 0:01:58.2]} 25. Qg4 {[%clk 0:01:01.8]} 25... Be8 {[%clk 0:01:52.5]} 26.
Rfd1 {[%clk 0:00:53.4]} 26... Rxd1 {[%clk 0:01:42.6]} 27. Rxd1 {[%clk
0:00:55.3]} 27... Bg6 {[%clk 0:01:37]} 28. Qxe6+ {[%clk 0:00:54]} 28... Bf7
{[%clk 0:01:30.2]} 29. Qg4 {[%clk 0:00:51.4]} 29... g6 {[%clk 0:01:17.2]} 30. h5
{[%clk 0:00:43]} 30... Qe7 {[%clk 0:01:04]} 31. Kh2 {[%clk 0:00:32.1]} 31... Be6
{[%clk 0:01:01.5]} 32. Qf3 {[%clk 0:00:32.3]} 32... g5 {[%clk 0:00:57.2]} 33.
Qxa8+ {[%clk 0:00:32.6]} 33... Kf7 {[%clk 0:00:55.2]} 34. Qd8 {[%clk 0:00:29.2]}
34... Qb7 {[%clk 0:00:43.7]} 35. Qc7+ {[%clk 0:00:29]} 1

[Event "Open Nuevo Centro. Jornada 1"]
[Site "Chess.com"]
[Date "2020.06.19"]
[Round "3"]
[White "Bendayan Claros, Aaron"]
[Black "Aguado, Pablo Luis"]
[Result "1-0"]
[WhiteElo "1652"]
[BlackElo "1203"]
[TimeControl "180+2"]
[EndTime "11:03:11 PDT"]
[Termination "Victoria de Cuajada_Zero por tiempo"]

1. e4 {[%clk 0:03:01.9]} 1... e5 {[%clk 0:03:00.1]} 2. Nf3 {[%clk 0:03:02.3]}
2... Nf6 {[%clk 0:02:58.3]} 3. Bc4 {[%clk 0:02:56.8]} 3... Nxe4 {[%clk
0:02:57.4]} 4. Nxe5 {[%clk 0:02:55.5]} 4... Nd6 {[%clk 0:02:57.6]} 5. Bb3 {[%clk
0:02:53]} 5... Nc6 {[%clk 0:02:56.9]} 6. Nxc6 {[%clk 0:02:52.8]} 6... dxc6
{[%clk 0:02:58.8]} 7. O-O {[%clk 0:02:53.4]} 7... Be7 {[%clk 0:02:59.4]} 8. Nc3
{[%clk 0:02:50]} 8... O-O {[%clk 0:02:59.6]} 9. d3 {[%clk 0:02:50.7]} 9... h6
{[%clk 0:02:55.1]} 10. Qf3 {[%clk 0:02:48.5]} 10... Bf6 {[%clk 0:02:53.9]} 11.
Qg3 {[%clk 0:02:46.7]} 11... Nf5 {[%clk 0:02:47.1]} 12. Qf3 {[%clk 0:02:38.9]}
12... Nd4 {[%clk 0:02:40.9]} 13. Qd1 {[%clk 0:02:39.5]} 13... Nxb3 {[%clk
0:02:40.3]} 14. axb3 {[%clk 0:02:39.6]} 14... Bf5 {[%clk 0:02:39.1]} 15. Qf3
{[%clk 0:02:39.3]} 15... Bg6 {[%clk 0:02:38.7]} 16. Bd2 {[%clk 0:02:37.2]} 16...
Qd7 {[%clk 0:02:38.1]} 17. Ra4 {[%clk 0:02:24.8]} 17... Rfe8 {[%clk 0:02:33.1]}
18. Nd1 {[%clk 0:02:24.7]} 18... Re6 {[%clk 0:02:23.1]} 19. h3 {[%clk
0:02:14.6]} 19... a6 {[%clk 0:02:23]} 20. Bc1 {[%clk 0:02:14.2]} 20... Rae8
{[%clk 0:02:21.9]} 21. Ne3 {[%clk 0:02:12.3]} 21... Bg5 {[%clk 0:02:17.2]} 22.
h4 {[%clk 0:01:54.2]} 22... Bxe3 {[%clk 0:02:07.8]} 23. Bxe3 {[%clk 0:01:51.3]}
23... Re5 {[%clk 0:01:53.5]} 24. Rf4 {[%clk 0:01:24.8]} 24... Qe6 {[%clk
0:01:49.2]} 25. Bd2 {[%clk 0:01:16.2]} 25... Re2 {[%clk 0:01:47.5]} 26. Bc3
{[%clk 0:01:12.2]} 26... Rxc2 {[%clk 0:01:36.5]} 27. h5 {[%clk 0:01:13]} 27...
Bh7 {[%clk 0:01:07.4]} 28. Re1 {[%clk 0:01:12.6]} 28... Re2 {[%clk 0:01:05.6]}
29. Rxe2 {[%clk 0:01:12.2]} 29... Qxe2 {[%clk 0:01:06.5]} 30. Rxf7 {[%clk
0:01:11.7]} 30... Qxf3 {[%clk 0:00:50.9]} 31. Rxg7+ {[%clk 0:01:09.5]} 31... Kf8
{[%clk 0:00:49.3]} 32. gxf3 {[%clk 0:01:09.2]} 32... Bxd3 {[%clk 0:00:48.2]} 33.
Rxc7 {[%clk 0:01:05.6]} 33... Rb8 {[%clk 0:00:32.2]} 34. Bg7+ {[%clk 0:01:03.1]}
34... Kg8 {[%clk 0:00:32]} 35. Bxh6 {[%clk 0:01:04.1]} 35... Be2 {[%clk
0:00:28.2]} 36. Kg2 {[%clk 0:01:03]} 36... Bd1 {[%clk 0:00:29]} 37. b4 {[%clk
0:01:02.7]} 37... Bb3 {[%clk 0:00:29.5]} 38. Be3 {[%clk 0:00:57.9]} 38... Bf7
{[%clk 0:00:20.4]} 39. h6 {[%clk 0:00:57.6]} 39... b6 {[%clk 0:00:18]} 40. Bd4
{[%clk 0:00:57]} 40... Bd5 {[%clk 0:00:15.6]} 41. h7+ {[%clk 0:00:52.9]} 1

[Event "Open Nuevo Centro. Jornada 1"]
[Site "Chess.com"]
[Date "2020.06.19"]
[Round "3"]
[White "Romero Barkouk, Rayan "]
[Black "Teply Koutsky, David"]
[Result "0-1"]
[WhiteElo "1098"]
[BlackElo "1580"]
[TimeControl "180+2"]
[EndTime "11:03:19 PDT"]
[Termination "Victoria de Mrchessmashine por jaque mate"]

1. d4 {[%clk 0:02:56.9]} 1... e6 {[%clk 0:03:00.6]} 2. Nf3 {[%clk 0:02:57.7]}
2... f5 {[%clk 0:03:00.9]} 3. Bf4 {[%clk 0:02:57.1]} 3... Nf6 {[%clk 0:03:01.8]}
4. c3 {[%clk 0:02:57.6]} 4... d5 {[%clk 0:03:02.7]} 5. e3 {[%clk 0:02:57]} 5...
c6 {[%clk 0:03:03.3]} 6. c4 {[%clk 0:02:57.6]} 6... Bd6 {[%clk 0:03:03.9]} 7.
Bxd6 {[%clk 0:02:57.1]} 7... Qxd6 {[%clk 0:03:04.5]} 8. c5 {[%clk 0:02:57.6]}
8... Qe7 {[%clk 0:03:05.3]} 9. Bd3 {[%clk 0:02:57.5]} 9... O-O {[%clk
0:03:05.8]} 10. O-O {[%clk 0:02:57.8]} 10... Ne4 {[%clk 0:03:06.4]} 11. Bxe4
{[%clk 0:02:58.2]} 11... fxe4 {[%clk 0:03:07.1]} 12. Ne5 {[%clk 0:02:58.9]}
12... Nd7 {[%clk 0:03:06.4]} 13. Nxd7 {[%clk 0:02:55.5]} 13... Bxd7 {[%clk
0:03:06.4]} 14. Qh5 {[%clk 0:02:55.7]} 14... Rf5 {[%clk 0:03:02.8]} 15. Qe2
{[%clk 0:02:53.6]} 15... Raf8 {[%clk 0:03:02.5]} 16. Nd2 {[%clk 0:02:50.3]}
16... e5 {[%clk 0:03:01.4]} 17. dxe5 {[%clk 0:02:49.8]} 17... Qxc5 {[%clk
0:02:58.3]} 18. Rac1 {[%clk 0:02:38.4]} 18... Qe7 {[%clk 0:02:57.7]} 19. Nb3
{[%clk 0:02:34]} 19... Rf3 {[%clk 0:02:30.1]} 20. Nd2 {[%clk 0:02:08.2]} 20...
Bg4 {[%clk 0:02:02.2]} 21. Nxf3 {[%clk 0:02:03.9]} 21... exf3 {[%clk 0:01:47.1]}
22. Qd2 {[%clk 0:01:55.2]} 22... fxg2 {[%clk 0:01:40.4]} 23. Qd4 {[%clk
0:01:54]} 23... Bf3 {[%clk 0:01:32.9]} 24. Rc3 {[%clk 0:01:45.3]} 24... Rf5
{[%clk 0:01:27.9]} 25. e4 {[%clk 0:01:36]} 25... dxe4 {[%clk 0:01:09.7]} 26. Qc5
{[%clk 0:01:24.3]} 26... Qh4 {[%clk 0:00:52.4]} 27. Qc4+ {[%clk 0:01:19.7]}
27... Kf8 {[%clk 0:00:38.1]} 28. Qc5+ {[%clk 0:01:18.7]} 28... Kf7 {[%clk
0:00:37]} 29. Qc4+ {[%clk 0:01:05.3]} 29... Kg6 {[%clk 0:00:35.4]} 30. Qe6+
{[%clk 0:01:00.3]} 30... Kg5 {[%clk 0:00:31.6]} 31. Qe7+ {[%clk 0:00:52.8]}
31... Kh5 {[%clk 0:00:24.3]} 32. Qxh4+ {[%clk 0:00:44.9]} 32... Kxh4 {[%clk
0:00:25]} 33. e6 {[%clk 0:00:45.3]} 33... Re5 {[%clk 0:00:25.6]} 34. Ra3 {[%clk
0:00:43.9]} 34... gxf1=Q+ {[%clk 0:00:20.5]} 35. Kxf1 {[%clk 0:00:42.1]} 35...
Rxe6 {[%clk 0:00:21.2]} 36. Rxa7 {[%clk 0:00:42.5]} 36... Rd6 {[%clk 0:00:21.7]}
37. Ra3 {[%clk 0:00:15.7]} 37... Rd1# {[%clk 0:00:23.6]} 0